[Event "Titled Tuesday Blitz March 07 Early 2023"]
[White "Bews, Steven"]
[Black "Begunov, Konstantin"]
[WhiteFideId "2400529"]
[BlackFideId "4118510"]
[WhiteElo "2585"]
[BlackElo "2079"]
[Result "1-0"]
[Round "11"]
[TimeControl "180+2"]
[Date "2023.03.07"]
[WhiteClock "0:00:10"]
[BlackClock "0:00:11"]

1. e4 {[%clk 0:03:00]}  c5 {[%clk 0:02:59]} 2. Nf3 {[%clk 0:02:58]}  d6 {[%clk 0:02:59]} 3. d4 {[%clk 0:02:58]}  cxd4 {[%clk 0:03:00]} 4. Nxd4 {[%clk 0:02:59]}  Nf6 {[%clk 0:03:00]} 5. Nc3 {[%clk 0:02:59]}  a6 {[%clk 0:03:00]} 6. f3 {[%clk 0:02:59]}  e5 {[%clk 0:03:00]} 7. Nb3 {[%clk 0:03:00]}  Be7 {[%clk 0:03:00]} 8. Be3 {[%clk 0:03:00]}  O-O {[%clk 0:02:59]} 9. Qd2 {[%clk 0:03:00]}  b5 {[%clk 0:02:59]} 10. O-O-O {[%clk 0:03:00]}  Be6 {[%clk 0:02:58]} 11. g4 {[%clk 0:03:00]}  b4 {[%clk 0:02:58]} 12. Nd5 {[%clk 0:03:00]}  Bxd5 {[%clk 0:02:58]} 13. exd5 {[%clk 0:03:01]}  a5 {[%clk 0:02:56]} 14. h4 {[%clk 0:02:59]}  a4 {[%clk 0:02:53]} 15. Na1 {[%clk 0:02:59]}  Qa5 {[%clk 0:02:51]} 16. h5 {[%clk 0:02:59]}  a3 {[%clk 0:02:45]} 17. b3 {[%clk 0:02:57]}  Nfd7 {[%clk 0:02:38]} 18. g5 {[%clk 0:02:57]}  Na6 {[%clk 0:02:21]} 19. g6 {[%clk 0:02:56]}  fxg6 {[%clk 0:02:12]} 20. hxg6 {[%clk 0:02:57]}  hxg6 {[%clk 0:02:13]} 21. Bd3 {[%clk 0:02:47]}  Rf6 {[%clk 0:01:54]} 22. Rdg1 {[%clk 0:02:46]}  Nf8 {[%clk 0:01:53]} 23. Bg5 {[%clk 0:02:45]}  Nc7 {[%clk 0:01:28]} 24. Qh2 {[%clk 0:02:34]}  Kf7 {[%clk 0:01:12]} 25. Bxf6 {[%clk 0:02:30]}  Bxf6 {[%clk 0:01:12]} 26. Bxg6+ {[%clk 0:02:29]}  Nxg6 {[%clk 0:01:07]} 27. Qh5 {[%clk 0:02:29]}  Qxd5 {[%clk 0:01:00]} 28. Rxg6 {[%clk 0:02:24]}  Ke7 {[%clk 0:00:55]} 29. Qf5 {[%clk 0:01:04]}  Ne8 {[%clk 0:00:28]} 30. c4 {[%clk 0:00:52]}  Qd4 {[%clk 0:00:19]} 31. Nc2 {[%clk 0:00:51]}  Qb2+ {[%clk 0:00:19]} 32. Kd2 {[%clk 0:00:48]}  Qxa2 {[%clk 0:00:19]} 33. Qe4 {[%clk 0:00:41]}  Rc8 {[%clk 0:00:15]} 34. Qb7+ {[%clk 0:00:41]}  Kd8 {[%clk 0:00:14]} 35. Qxb4 {[%clk 0:00:40]}  Qb2 {[%clk 0:00:12]} 36. Qxa3 {[%clk 0:00:38]}  Qxa3 {[%clk 0:00:05]} 37. Nxa3 {[%clk 0:00:39]}  Ke7 {[%clk 0:00:04]} 38. Nb5 {[%clk 0:00:34]}  Kf7 {[%clk 0:00:05]} 39. Rgg1 {[%clk 0:00:30]}  Rb8 {[%clk 0:00:05]} 40. Ra1 {[%clk 0:00:29]}  d5 {[%clk 0:00:06]} 41. Ra7+ {[%clk 0:00:28]}  Kg6 {[%clk 0:00:06]} 42. Rg1+ {[%clk 0:00:26]}  Kf5 {[%clk 0:00:06]} 43. Kd3 {[%clk 0:00:21]}  dxc4+ {[%clk 0:00:07]} 44. bxc4 {[%clk 0:00:21]}  Rd8+ {[%clk 0:00:07]} 45. Kc2 {[%clk 0:00:20]}  Nd6 {[%clk 0:00:08]} 46. Nxd6+ {[%clk 0:00:17]}  Rxd6 {[%clk 0:00:09]} 47. Rd1 {[%clk 0:00:16]}  Rc6 {[%clk 0:00:09]} 48. Kd3 {[%clk 0:00:16]}  Kf4 {[%clk 0:00:10]} 49. Ra2 {[%clk 0:00:14]}  Rd6+ {[%clk 0:00:10]} 50. Ke2 {[%clk 0:00:14]}  Rxd1 {[%clk 0:00:09]} 51. Kxd1 {[%clk 0:00:14]}  Kxf3 {[%clk 0:00:10]} 52. c5 {[%clk 0:00:14]}  e4 {[%clk 0:00:11]} 53. c6 {[%clk 0:00:14]}  Be5 {[%clk 0:00:11]} 54. Ra7 {[%clk 0:00:13]}  e3 {[%clk 0:00:12]} 55. Rf7+ {[%clk 0:00:12]}  Ke4 {[%clk 0:00:12]} 56. c7 {[%clk 0:00:12]}  Kd3 {[%clk 0:00:12]} 57. Rd7+ {[%clk 0:00:11]}  Ke4 {[%clk 0:00:11]} 58. c8=Q {[%clk 0:00:11]}  Bd4 {[%clk 0:00:11]} 59. Qc4 {[%clk 0:00:09]}  e2+ {[%clk 0:00:11]} 60. Kxe2 {[%clk 0:00:09]}  Kf5 {[%clk 0:00:11]} 61. Rxd4 {[%clk 0:00:10]} 1-0


[Site "https://www.chess.com"]

[Event "Titled Tuesday Blitz March 07 Early 2023"]
[White "Ruge, Edison"]
[Black "Kokoszczynski, Jan"]
[WhiteFideId "4401000"]
[BlackFideId "1174460"]
[WhiteElo "2175"]
[BlackElo "2139"]
[Result "1-0"]
[Round "11"]
[TimeControl "180+2"]
[Date "2023.03.07"]
[WhiteClock "0:00:17"]
[BlackClock "0:00:06"]

1. e4 {[%clk 0:02:57]}  e5 {[%clk 0:02:57]} 2. Nf3 {[%clk 0:02:57]}  Nc6 {[%clk 0:02:57]} 3. Bb5 {[%clk 0:02:56]}  a6 {[%clk 0:02:56]} 4. Ba4 {[%clk 0:02:57]}  Nf6 {[%clk 0:02:56]} 5. Qe2 {[%clk 0:02:57]}  b5 {[%clk 0:02:46]} 6. Bb3 {[%clk 0:02:57]}  Be7 {[%clk 0:02:44]} 7. a4 {[%clk 0:02:57]}  Rb8 {[%clk 0:02:44]} 8. axb5 {[%clk 0:02:56]}  axb5 {[%clk 0:02:45]} 9. Nc3 {[%clk 0:02:56]}  O-O {[%clk 0:02:44]} 10. O-O {[%clk 0:02:53]}  d6 {[%clk 0:02:38]} 11. h3 {[%clk 0:02:52]}  b4 {[%clk 0:02:17]} 12. Nd5 {[%clk 0:02:52]}  Nxd5 {[%clk 0:02:17]} 13. Bxd5 {[%clk 0:02:51]}  Bd7 {[%clk 0:02:12]} 14. d3 {[%clk 0:02:48]}  Qe8 {[%clk 0:02:10]} 15. Be3 {[%clk 0:02:44]}  Nd8 {[%clk 0:02:09]} 16. Ra7 {[%clk 0:02:38]}  c6 {[%clk 0:02:06]} 17. Bb3 {[%clk 0:02:36]}  Be6 {[%clk 0:02:01]} 18. Nd2 {[%clk 0:02:30]}  c5 {[%clk 0:02:00]} 19. Ba4 {[%clk 0:02:28]}  Nc6 {[%clk 0:01:56]} 20. Rxe7 {[%clk 0:02:24]}  Qxe7 {[%clk 0:01:55]} 21. Bxc6 {[%clk 0:02:24]}  Qc7 {[%clk 0:01:44]} 22. Bd5 {[%clk 0:02:23]}  Bxd5 {[%clk 0:01:45]} 23. exd5 {[%clk 0:02:23]}  b3 {[%clk 0:01:41]} 24. c3 {[%clk 0:02:19]}  Qa5 {[%clk 0:01:41]} 25. Nc4 {[%clk 0:02:19]}  Qc7 {[%clk 0:01:40]} 26. f4 {[%clk 0:02:18]}  f6 {[%clk 0:01:40]} 27. Qg4 {[%clk 0:02:13]}  Rbe8 {[%clk 0:01:34]} 28. Ra1 {[%clk 0:02:08]}  f5 {[%clk 0:01:23]} 29. Qd1 {[%clk 0:02:03]}  g5 {[%clk 0:01:14]} 30. fxe5 {[%clk 0:02:01]}  dxe5 {[%clk 0:01:12]} 31. Bxg5 {[%clk 0:01:56]}  Qg7 {[%clk 0:01:08]} 32. Be3 {[%clk 0:01:52]}  f4 {[%clk 0:01:07]} 33. Bxc5 {[%clk 0:01:51]}  f3 {[%clk 0:01:05]} 34. Qd2 {[%clk 0:01:33]}  Rf6 {[%clk 0:01:04]} 35. Ra7 {[%clk 0:01:28]}  Qg3 {[%clk 0:01:01]} 36. Qf2 {[%clk 0:01:25]}  Qg6 {[%clk 0:00:49]} 37. g4 {[%clk 0:01:17]}  Qxd3 {[%clk 0:00:42]} 38. Ne3 {[%clk 0:01:15]}  Kh8 {[%clk 0:00:27]} 39. Kh2 {[%clk 0:01:13]}  Qe4 {[%clk 0:00:21]} 40. d6 {[%clk 0:01:04]}  Qf4+ {[%clk 0:00:20]} 41. Kg1 {[%clk 0:01:00]}  Rg8 {[%clk 0:00:15]} 42. d7 {[%clk 0:00:59]}  h5 {[%clk 0:00:16]} 43. Be7 {[%clk 0:00:52]}  Rf7 {[%clk 0:00:03]} 44. Nf5 {[%clk 0:00:33]}  hxg4 {[%clk 0:00:03]} 45. d8=Q {[%clk 0:00:18]}  g3 {[%clk 0:00:03]} 46. Qxg8+ {[%clk 0:00:17]}  Kxg8 {[%clk 0:00:04]} 47. Qxg3+ {[%clk 0:00:17]}  Qxg3+ {[%clk 0:00:05]} 48. Nxg3 {[%clk 0:00:17]}  f2+ {[%clk 0:00:05]} 49. Kf1 {[%clk 0:00:17]}  e4 {[%clk 0:00:06]} 50. Nxe4 {[%clk 0:00:17]} 1-0


[Site "https://www.chess.com"]

[Event "Titled Tuesday Blitz March 07 Early 2023"]
[White "surrenderPLS"]
[Black "Harsh Suresh"]
[BlackFideId "45018464"]
[WhiteElo "2489"]
[BlackElo "2227"]
[Result "0-1"]
[Round "11"]
[TimeControl "180+2"]
[Date "2023.03.07"]
[WhiteClock "0:00:17"]
[BlackClock "0:02:01"]

1. e4 {[%clk 0:02:59]}  c5 {[%clk 0:03:00]} 2. Nf3 {[%clk 0:02:59]}  g6 {[%clk 0:03:00]} 3. d4 {[%clk 0:02:59]}  cxd4 {[%clk 0:03:01]} 4. Qxd4 {[%clk 0:03:00]}  Nf6 {[%clk 0:03:01]} 5. Nc3 {[%clk 0:03:00]}  Nc6 {[%clk 0:03:02]} 6. Qa4 {[%clk 0:03:01]}  d6 {[%clk 0:03:02]} 7. e5 {[%clk 0:03:01]}  dxe5 {[%clk 0:03:03]} 8. Nxe5 {[%clk 0:03:02]}  Bg7 {[%clk 0:03:02]} 9. Bb5 {[%clk 0:02:58]}  O-O {[%clk 0:03:02]} 10. Nxc6 {[%clk 0:02:58]}  bxc6 {[%clk 0:03:03]} 11. Bxc6 {[%clk 0:02:59]}  Rb8 {[%clk 0:03:03]} 12. O-O {[%clk 0:02:59]}  a5 {[%clk 0:02:58]} 13. a3 {[%clk 0:02:48]}  Bf5 {[%clk 0:02:54]} 14. Rb1 {[%clk 0:02:38]}  Qc7 {[%clk 0:02:28]} 15. Bf4 {[%clk 0:02:21]}  e5 {[%clk 0:02:27]} 16. Bg3 {[%clk 0:02:21]}  Nh5 {[%clk 0:02:20]} 17. Nd5 {[%clk 0:02:12]}  Qd6 {[%clk 0:02:20]} 18. Ne3 {[%clk 0:01:38]}  Nxg3 {[%clk 0:02:16]} 19. hxg3 {[%clk 0:01:33]}  Be6 {[%clk 0:02:16]} 20. Rfd1 {[%clk 0:01:26]}  Qc7 {[%clk 0:02:08]} 21. c3 {[%clk 0:01:00]}  Bb3 {[%clk 0:02:07]} 22. Rd7 {[%clk 0:00:17]}  Qxd7 {[%clk 0:02:01]} 0-1


[Site "https://www.chess.com"]

[Event "Titled Tuesday Blitz March 07 Early 2023"]
[White "Petrosian, Karlen"]
[Black "Omariev, Maksim"]
[WhiteFideId "4176146"]
[BlackFideId "4193423"]
[WhiteElo "2345"]
[BlackElo "2485"]
[Result "1-0"]
[Round "11"]
[TimeControl "180+2"]
[Date "2023.03.07"]
[WhiteClock "0:00:08"]
[BlackClock "0:00:01"]

1. e4 {[%clk 0:03:00]}  c5 {[%clk 0:02:58]} 2. Be2 {[%clk 0:02:53]}  d6 {[%clk 0:02:56]} 3. f4 {[%clk 0:02:53]}  Nc6 {[%clk 0:02:55]} 4. Nf3 {[%clk 0:02:53]}  e5 {[%clk 0:02:52]} 5. O-O {[%clk 0:02:51]}  Be7 {[%clk 0:02:20]} 6. fxe5 {[%clk 0:02:46]}  dxe5 {[%clk 0:02:14]} 7. Bc4 {[%clk 0:02:46]}  Nf6 {[%clk 0:02:07]} 8. d3 {[%clk 0:02:44]}  Bg4 {[%clk 0:01:56]} 9. h3 {[%clk 0:02:27]}  Bxf3 {[%clk 0:01:32]} 10. Qxf3 {[%clk 0:02:28]}  Nd4 {[%clk 0:01:32]} 11. Qf2 {[%clk 0:02:28]}  b5 {[%clk 0:01:29]} 12. Bd5 {[%clk 0:02:28]}  Rc8 {[%clk 0:01:20]} 13. c3 {[%clk 0:02:28]}  Nc6 {[%clk 0:00:42]} 14. Bg5 {[%clk 0:02:27]}  O-O {[%clk 0:00:39]} 15. Bxf6 {[%clk 0:02:26]}  Bxf6 {[%clk 0:00:40]} 16. Nd2 {[%clk 0:02:16]}  Rc7 {[%clk 0:00:23]} 17. Nf3 {[%clk 0:01:48]}  Ne7 {[%clk 0:00:22]} 18. c4 {[%clk 0:01:45]}  g6 {[%clk 0:00:14]} 19. Nd2 {[%clk 0:01:29]}  Bg5 {[%clk 0:00:09]} 20. Nf3 {[%clk 0:01:25]}  Bf6 {[%clk 0:00:05]} 21. Qe3 {[%clk 0:01:20]}  Kg7 {[%clk 0:00:05]} 22. Rf2 {[%clk 0:01:19]}  Nxd5 {[%clk 0:00:04]} 23. exd5 {[%clk 0:01:06]}  bxc4 {[%clk 0:00:04]} 24. dxc4 {[%clk 0:01:06]}  e4 {[%clk 0:00:04]} 25. Qxe4 {[%clk 0:01:05]}  Re7 {[%clk 0:00:04]} 26. Qd3 {[%clk 0:01:03]}  Rfe8 {[%clk 0:00:04]} 27. Raf1 {[%clk 0:01:02]}  Re3 {[%clk 0:00:05]} 28. Qc2 {[%clk 0:00:59]}  R8e7 {[%clk 0:00:04]} 29. Kh1 {[%clk 0:00:57]}  Qd6 {[%clk 0:00:04]} 30. b3 {[%clk 0:00:50]}  h5 {[%clk 0:00:04]} 31. Qd1 {[%clk 0:00:37]}  Bc3 {[%clk 0:00:04]} 32. Ng5 {[%clk 0:00:25]}  Re1 {[%clk 0:00:04]} 33. Rxf7+ {[%clk 0:00:15]}  Kh6 {[%clk 0:00:02]} 34. Qd3 {[%clk 0:00:08]}  Rxf1+ {[%clk 0:00:01]} 35. Rxf1 {[%clk 0:00:08]}  Kxg5 {[%clk 0:00:01]} 36. Qxc3 {[%clk 0:00:08]}  Re4 {[%clk 0:00:02]} 37. Qd2+ {[%clk 0:00:08]}  Rf4 {[%clk 0:00:01]} 38. g3 {[%clk 0:00:08]} 1-0


[Site "https://www.chess.com"]

[Event "Titled Tuesday Blitz March 07 Early 2023"]
[White "Khamdamova, Afruza"]
[Black "Skliarov, Viktor"]
[WhiteFideId "14210444"]
[BlackFideId "14106736"]
[WhiteElo "2210"]
[BlackElo "2289"]
[Result "0-1"]
[Round "11"]
[TimeControl "180+2"]
[Date "2023.03.07"]
[WhiteClock "0:00:06"]
[BlackClock "0:00:13"]

1. c4 {[%clk 0:02:57]}  e5 {[%clk 0:03:00]} 2. Nc3 {[%clk 0:02:56]}  Bb4 {[%clk 0:03:00]} 3. Nd5 {[%clk 0:02:56]}  Ba5 {[%clk 0:03:00]} 4. b4 {[%clk 0:02:54]}  c6 {[%clk 0:03:00]} 5. bxa5 {[%clk 0:02:49]}  cxd5 {[%clk 0:03:00]} 6. cxd5 {[%clk 0:02:49]}  Qxa5 {[%clk 0:03:01]} 7. e4 {[%clk 0:02:48]}  Nf6 {[%clk 0:02:59]} 8. Qc2 {[%clk 0:02:36]}  O-O {[%clk 0:02:57]} 9. Bb2 {[%clk 0:02:36]}  d6 {[%clk 0:02:55]} 10. Bc3 {[%clk 0:02:34]}  Qd8 {[%clk 0:02:44]} 11. Nf3 {[%clk 0:02:34]}  Bg4 {[%clk 0:02:40]} 12. Be2 {[%clk 0:02:34]}  Nbd7 {[%clk 0:02:39]} 13. O-O {[%clk 0:02:34]}  Nc5 {[%clk 0:02:39]} 14. d3 {[%clk 0:02:29]}  Rc8 {[%clk 0:02:39]} 15. Rfc1 {[%clk 0:02:14]}  Qd7 {[%clk 0:02:37]} 16. h3 {[%clk 0:02:10]}  Bxf3 {[%clk 0:02:36]} 17. Bxf3 {[%clk 0:02:10]}  Na4 {[%clk 0:02:36]} 18. Qb3 {[%clk 0:02:08]}  Nxc3 {[%clk 0:02:35]} 19. Rxc3 {[%clk 0:02:08]}  Rxc3 {[%clk 0:02:35]} 20. Qxc3 {[%clk 0:02:09]}  Rc8 {[%clk 0:02:35]} 21. Qa5 {[%clk 0:02:07]}  b6 {[%clk 0:02:33]} 22. Qb4 {[%clk 0:02:04]}  Qc7 {[%clk 0:02:20]} 23. a4 {[%clk 0:01:54]}  Qc5 {[%clk 0:02:14]} 24. Qb3 {[%clk 0:01:42]}  h6 {[%clk 0:02:12]} 25. a5 {[%clk 0:01:27]}  bxa5 {[%clk 0:01:44]} 26. Qa4 {[%clk 0:01:25]}  Rb8 {[%clk 0:01:44]} 27. Qxa5 {[%clk 0:01:22]}  Rb1+ {[%clk 0:01:44]} 28. Kh2 {[%clk 0:01:23]}  Rxa1 {[%clk 0:01:43]} 29. Qxa1 {[%clk 0:01:23]}  Qxf2 {[%clk 0:01:43]} 30. Qa3 {[%clk 0:01:18]}  Qb6 {[%clk 0:01:39]} 31. Qc3 {[%clk 0:01:12]}  g6 {[%clk 0:01:36]} 32. Qc8+ {[%clk 0:01:12]}  Kg7 {[%clk 0:01:35]} 33. h4 {[%clk 0:01:10]}  Qf2 {[%clk 0:01:25]} 34. h5 {[%clk 0:00:52]}  gxh5 {[%clk 0:01:06]} 35. Qc7 {[%clk 0:00:42]}  Qb6 {[%clk 0:01:00]} 36. Qc8 {[%clk 0:00:38]}  a5 {[%clk 0:00:54]} 37. Bxh5 {[%clk 0:00:36]}  a4 {[%clk 0:00:36]} 38. Bxf7 {[%clk 0:00:32]}  Kxf7 {[%clk 0:00:32]} 39. Qe6+ {[%clk 0:00:31]}  Kg6 {[%clk 0:00:30]} 40. Qf5+ {[%clk 0:00:30]}  Kg7 {[%clk 0:00:27]} 41. Qe6 {[%clk 0:00:27]}  Qa7 {[%clk 0:00:20]} 42. d4 {[%clk 0:00:20]}  Qxd4 {[%clk 0:00:18]} 43. Qe7+ {[%clk 0:00:18]}  Kg6 {[%clk 0:00:18]} 44. Qxd6 {[%clk 0:00:19]}  Qxe4 {[%clk 0:00:18]} 45. Qa6 {[%clk 0:00:12]}  Qh4+ {[%clk 0:00:17]} 46. Kg1 {[%clk 0:00:12]}  Qd4+ {[%clk 0:00:17]} 47. Kh2 {[%clk 0:00:12]}  e4 {[%clk 0:00:17]} 48. d6 {[%clk 0:00:11]}  e3 {[%clk 0:00:17]} 49. Qe2 {[%clk 0:00:11]}  Qxd6+ {[%clk 0:00:17]} 50. g3 {[%clk 0:00:11]}  Qd2 {[%clk 0:00:12]} 51. Kh3 {[%clk 0:00:07]}  Qxe2 {[%clk 0:00:12]} 52. g4 {[%clk 0:00:06]}  Qxg4+ {[%clk 0:00:12]} 53. Kh2 {[%clk 0:00:06]}  Kf5 {[%clk 0:00:13]} 0-1


[Site "https://www.chess.com"]

[Event "Titled Tuesday Blitz March 07 Early 2023"]
[White "Odegov, Artem"]
[Black "Dudzinski, Pawel"]
[WhiteFideId "34183644"]
[BlackFideId "1117890"]
[WhiteElo "2300"]
[BlackElo "2099"]
[Result "1-0"]
[Round "11"]
[TimeControl "180+2"]
[Date "2023.03.07"]
[WhiteClock "0:00:20"]
[BlackClock "0:00:02"]

1. d4 {[%clk 0:02:58]}  d5 {[%clk 0:02:59]} 2. c4 {[%clk 0:02:57]}  c6 {[%clk 0:03:00]} 3. Nc3 {[%clk 0:02:57]}  e6 {[%clk 0:03:00]} 4. Nf3 {[%clk 0:02:54]}  f5 {[%clk 0:03:01]} 5. g4 {[%clk 0:02:54]}  g6 {[%clk 0:02:59]} 6. gxf5 {[%clk 0:02:53]}  exf5 {[%clk 0:03:00]} 7. h4 {[%clk 0:02:53]}  Nf6 {[%clk 0:03:00]} 8. Ne5 {[%clk 0:02:53]}  Nbd7 {[%clk 0:02:59]} 9. Bg5 {[%clk 0:02:52]}  Be7 {[%clk 0:02:59]} 10. e3 {[%clk 0:02:48]}  Nxe5 {[%clk 0:02:58]} 11. dxe5 {[%clk 0:02:49]}  Ne4 {[%clk 0:02:58]} 12. Nxe4 {[%clk 0:02:48]}  dxe4 {[%clk 0:02:55]} 13. Qxd8+ {[%clk 0:02:46]}  Bxd8 {[%clk 0:02:56]} 14. O-O-O {[%clk 0:02:44]}  Be6 {[%clk 0:02:48]} 15. Rd6 {[%clk 0:02:34]}  Bxg5 {[%clk 0:01:55]} 16. Rxe6+ {[%clk 0:02:22]}  Be7 {[%clk 0:01:45]} 17. c5 {[%clk 0:02:21]}  Kd7 {[%clk 0:01:45]} 18. Bc4 {[%clk 0:02:19]}  Bxc5 {[%clk 0:01:46]} 19. Rd1+ {[%clk 0:02:18]}  Kc7 {[%clk 0:01:46]} 20. Rf6 {[%clk 0:02:17]}  Rae8 {[%clk 0:01:36]} 21. Rf7+ {[%clk 0:02:15]}  Re7 {[%clk 0:01:36]} 22. e6 {[%clk 0:02:16]}  Rd8 {[%clk 0:01:29]} 23. Rh1 {[%clk 0:02:03]}  a5 {[%clk 0:01:18]} 24. a3 {[%clk 0:02:01]}  b5 {[%clk 0:01:08]} 25. Ba2 {[%clk 0:01:59]}  Rxf7 {[%clk 0:01:03]} 26. exf7 {[%clk 0:01:59]}  f4 {[%clk 0:01:04]} 27. Rh3 {[%clk 0:01:51]}  fxe3 {[%clk 0:00:51]} 28. fxe3 {[%clk 0:01:51]}  Kd6 {[%clk 0:00:48]} 29. h5 {[%clk 0:01:50]}  g5 {[%clk 0:00:47]} 30. h6 {[%clk 0:01:42]}  Ke7 {[%clk 0:00:43]} 31. Rg3 {[%clk 0:01:42]}  Rd3 {[%clk 0:00:41]} 32. Kc2 {[%clk 0:01:31]}  Bxe3 {[%clk 0:00:37]} 33. Rg2 {[%clk 0:00:42]}  Bf4 {[%clk 0:00:37]} 34. Be6 {[%clk 0:00:42]}  Rg3 {[%clk 0:00:20]} 35. Rxg3 {[%clk 0:00:27]}  Bxg3 {[%clk 0:00:20]} 36. Bf5 {[%clk 0:00:27]}  e3 {[%clk 0:00:14]} 37. Bxh7 {[%clk 0:00:26]}  Kxf7 {[%clk 0:00:14]} 38. Kd3 {[%clk 0:00:25]}  Bf4 {[%clk 0:00:09]} 39. Bf5 {[%clk 0:00:24]}  c5 {[%clk 0:00:09]} 40. Bd7 {[%clk 0:00:24]}  c4+ {[%clk 0:00:07]} 41. Ke2 {[%clk 0:00:24]}  b4 {[%clk 0:00:03]} 42. axb4 {[%clk 0:00:22]}  axb4 {[%clk 0:00:04]} 43. Bb5 {[%clk 0:00:22]}  Kg6 {[%clk 0:00:03]} 44. h7 {[%clk 0:00:17]}  Kxh7 {[%clk 0:00:02]} 45. Bxc4 {[%clk 0:00:18]}  Kh6 {[%clk 0:00:01]} 46. Kf3 {[%clk 0:00:18]}  Kh5 {[%clk 0:00:02]} 47. b3 {[%clk 0:00:19]}  Kh4 {[%clk 0:00:02]} 48. Be6 {[%clk 0:00:20]} 1-0


[Site "https://www.chess.com"]

[Event "Titled Tuesday Blitz March 07 Early 2023"]
[White "Migot, Tangi"]
[Black "Postnikov, Artem"]
[WhiteFideId "662445"]
[BlackFideId "34153575"]
[WhiteElo "2538"]
[BlackElo "2243"]
[Result "0-1"]
[Round "11"]
[TimeControl "180+2"]
[Date "2023.03.07"]
[WhiteClock "0:00:05"]
[BlackClock "0:00:06"]

1. Nf3 {[%clk 0:02:08]}  Nf6 {[%clk 0:02:49]} 2. d4 {[%clk 0:02:08]}  g6 {[%clk 0:02:46]} 3. Bf4 {[%clk 0:02:08]}  Bg7 {[%clk 0:02:46]} 4. e3 {[%clk 0:02:08]}  O-O {[%clk 0:02:47]} 5. Be2 {[%clk 0:02:08]}  d6 {[%clk 0:02:47]} 6. O-O {[%clk 0:02:09]}  Nbd7 {[%clk 0:02:46]} 7. c4 {[%clk 0:02:08]}  Ne4 {[%clk 0:02:43]} 8. Qc2 {[%clk 0:02:05]}  f5 {[%clk 0:02:35]} 9. Bd3 {[%clk 0:02:00]}  e5 {[%clk 0:02:31]} 10. dxe5 {[%clk 0:01:53]}  dxe5 {[%clk 0:02:32]} 11. Bxe4 {[%clk 0:01:48]}  exf4 {[%clk 0:02:16]} 12. Bd5+ {[%clk 0:01:46]}  Kh8 {[%clk 0:02:16]} 13. exf4 {[%clk 0:01:45]}  Qf6 {[%clk 0:02:07]} 14. Ne5 {[%clk 0:01:34]}  Nxe5 {[%clk 0:02:01]} 15. fxe5 {[%clk 0:01:35]}  Qxe5 {[%clk 0:02:02]} 16. Nc3 {[%clk 0:01:35]}  c6 {[%clk 0:02:01]} 17. Rfe1 {[%clk 0:01:31]}  Qf6 {[%clk 0:01:50]} 18. Bf3 {[%clk 0:01:30]}  Bd7 {[%clk 0:01:48]} 19. Rad1 {[%clk 0:01:22]}  Rad8 {[%clk 0:01:48]} 20. Na4 {[%clk 0:01:19]}  Bc8 {[%clk 0:01:46]} 21. b3 {[%clk 0:01:16]}  Rxd1 {[%clk 0:01:37]} 22. Rxd1 {[%clk 0:01:16]}  Rd8 {[%clk 0:01:37]} 23. g3 {[%clk 0:01:10]}  Rxd1+ {[%clk 0:01:29]} 24. Qxd1 {[%clk 0:01:11]}  Qa1 {[%clk 0:01:03]} 25. Qxa1 {[%clk 0:00:56]}  Bxa1 {[%clk 0:01:04]} 26. Nc5 {[%clk 0:00:57]}  Bd4 {[%clk 0:01:01]} 27. Nd3 {[%clk 0:00:57]}  Kg7 {[%clk 0:01:00]} 28. h4 {[%clk 0:00:55]}  Kf6 {[%clk 0:00:59]} 29. Kf1 {[%clk 0:00:55]}  h6 {[%clk 0:00:37]} 30. Bg2 {[%clk 0:00:49]}  g5 {[%clk 0:00:35]} 31. hxg5+ {[%clk 0:00:49]}  hxg5 {[%clk 0:00:36]} 32. Ke2 {[%clk 0:00:44]}  a5 {[%clk 0:00:34]} 33. a4 {[%clk 0:00:37]}  Ke7 {[%clk 0:00:33]} 34. f4 {[%clk 0:00:26]}  g4 {[%clk 0:00:30]} 35. Bf1 {[%clk 0:00:24]}  Kd6 {[%clk 0:00:30]} 36. Kd2 {[%clk 0:00:24]}  Be6 {[%clk 0:00:26]} 37. Be2 {[%clk 0:00:25]}  b5 {[%clk 0:00:22]} 38. axb5 {[%clk 0:00:20]}  cxb5 {[%clk 0:00:22]} 39. cxb5 {[%clk 0:00:13]}  Bxb3 {[%clk 0:00:22]} 40. b6 {[%clk 0:00:11]}  Bxb6 {[%clk 0:00:20]} 41. Kc3 {[%clk 0:00:12]}  Bd5 {[%clk 0:00:20]} 42. Bd1 {[%clk 0:00:11]}  Be4 {[%clk 0:00:17]} 43. Bc2 {[%clk 0:00:09]}  Ke6 {[%clk 0:00:11]} 44. Bb3+ {[%clk 0:00:08]}  Kf6 {[%clk 0:00:11]} 45. Ne5 {[%clk 0:00:05]}  Bf2 {[%clk 0:00:10]} 46. Bd1 {[%clk 0:00:05]}  Bxg3 {[%clk 0:00:08]} 47. Nxg4+ {[%clk 0:00:02]}  fxg4 {[%clk 0:00:08]} 48. Bxg4 {[%clk 0:00:03]}  Bxf4 {[%clk 0:00:08]} 49. Bd7 {[%clk 0:00:03]}  Bd6 {[%clk 0:00:07]} 50. Kb3 {[%clk 0:00:04]}  Ke5 {[%clk 0:00:07]} 51. Ka4 {[%clk 0:00:04]}  Bb4 {[%clk 0:00:07]} 52. Kb3 {[%clk 0:00:04]}  Kd4 {[%clk 0:00:06]} 53. Bb5 {[%clk 0:00:05]}  Bd5+ {[%clk 0:00:06]} 54. Ka4 {[%clk 0:00:05]}  Kc5 {[%clk 0:00:05]} 55. Be8 {[%clk 0:00:05]}  Bc6+ {[%clk 0:00:04]} 56. Bxc6 {[%clk 0:00:04]}  Kxc6 {[%clk 0:00:05]} 57. Kb3 {[%clk 0:00:05]}  Kb5 {[%clk 0:00:06]} 58. Ka2 {[%clk 0:00:05]}  a4 {[%clk 0:00:06]} 0-1


[Site "https://www.chess.com"]

[Event "Titled Tuesday Blitz March 07 Early 2023"]
[White "Osinovsky, Stepan"]
[Black "Turzo, Attila"]
[WhiteFideId "4157354"]
[BlackFideId "704954"]
[WhiteElo "2222"]
[BlackElo "2521"]
[Result "0-1"]
[Round "11"]
[TimeControl "180+2"]
[Date "2023.03.07"]
[WhiteClock "0:00:09"]
[BlackClock "0:01:00"]

1. Nf3 {[%clk 0:03:00]}  c5 {[%clk 0:02:56]} 2. g3 {[%clk 0:03:01]}  Nc6 {[%clk 0:02:56]} 3. Bg2 {[%clk 0:03:02]}  g6 {[%clk 0:02:56]} 4. O-O {[%clk 0:03:03]}  Bg7 {[%clk 0:02:56]} 5. d3 {[%clk 0:03:04]}  e5 {[%clk 0:02:56]} 6. e4 {[%clk 0:03:02]}  Nge7 {[%clk 0:02:56]} 7. c3 {[%clk 0:03:01]}  O-O {[%clk 0:02:56]} 8. Re1 {[%clk 0:03:01]}  h6 {[%clk 0:02:53]} 9. Na3 {[%clk 0:02:56]}  d6 {[%clk 0:02:50]} 10. Nc2 {[%clk 0:02:49]}  d5 {[%clk 0:02:45]} 11. exd5 {[%clk 0:02:36]}  Nxd5 {[%clk 0:02:46]} 12. d4 {[%clk 0:02:34]}  exd4 {[%clk 0:02:38]} 13. cxd4 {[%clk 0:02:34]}  c4 {[%clk 0:02:39]} 14. Ne3 {[%clk 0:02:29]}  Nxe3 {[%clk 0:02:31]} 15. Bxe3 {[%clk 0:02:27]}  Be6 {[%clk 0:02:31]} 16. Qc1 {[%clk 0:01:27]}  Kh7 {[%clk 0:02:25]} 17. b3 {[%clk 0:00:52]}  cxb3 {[%clk 0:02:18]} 18. axb3 {[%clk 0:00:53]}  Bd5 {[%clk 0:02:18]} 19. Qc5 {[%clk 0:00:37]}  Bxf3 {[%clk 0:01:49]} 20. Bxf3 {[%clk 0:00:35]}  Bxd4 {[%clk 0:01:44]} 21. Bxd4 {[%clk 0:00:32]}  Nxd4 {[%clk 0:01:24]} 22. Bxb7 {[%clk 0:00:28]}  Nxb3 {[%clk 0:01:17]} 23. Qc6 {[%clk 0:00:11]}  Nxa1 {[%clk 0:01:13]} 24. Rxa1 {[%clk 0:00:10]}  Rb8 {[%clk 0:01:09]} 25. Rxa7 {[%clk 0:00:11]}  Qe7 {[%clk 0:01:01]} 26. Ra6 {[%clk 0:00:09]}  Qxb7 {[%clk 0:01:00]} 0-1


[Site "https://www.chess.com"]